bitfinex/quotes_SOLUSD_20230111
["timestamp","ask_amount","ask_price","bid_price","bid_amount"]
[1673424397902,20.0,16.035,16.02,19.1]
[1673424399179,20.0,16.036,16.02,19.1]
[1673424399367,20.0,16.036,16.021,20.0]
[1673424399582,20.0,16.036,16.022,19.09]
[1673424399805,20.0,16.036,16.023,20.0]
[1673424400004,20.0,16.036,16.024,19.53]
[1673424401078,20.0,16.036,16.022,20.95]
[1673424401897,20.0,16.036,16.023,20.0]
[1673424402109,20.0,16.036,16.024,21.19]
[1673424402326,133.16,16.04,16.029,17.0]
[1673424402539,26.76,16.04,16.03,20.0]
[1673424402853,20.0,16.044,16.031,38.58]
[1673424403269,20.0,16.044,16.032,20.0]
[1673424403475,26.67,16.05,16.033,40.63]
[1673424403681,66.73,16.055,16.033,41.59]
[1673424403998,20.0,16.055,16.034,0.96]
[1673424404201,20.0,16.055,16.035,25.62]
[1673424404414,20.0,16.055,16.037,20.0]
[1673424404624,20.0,16.055,16.038,67.01]
[1673424404943,394.3,16.056,16.038,67.01]
[1673424405152,394.3,16.056,16.039,12.90412914]
[1673424405486,20.0,16.055,16.04,52.42]
[1673424405796,20.0,16.055,16.04,35.42]
[1673424405797,26.41,16.05,16.04,35.42]
[1673424406010,26.41,16.05,16.038,53.97130981]
[1673424406217,20.0,16.049,16.039,36.54]
[1673424406532,20.0,16.049,16.035,36.54]
[1673424406746,20.0,16.049,16.036,20.0]
[1673424406971,20.0,16.049,16.037,53.59]
[1673424407186,20.0,16.049,16.037,36.59]
[1673424407499,20.0,16.049,16.035,36.73]
[1673424408552,20.0,16.048,16.036,17.0]
[1673424408975,20.0,16.048,16.037,36.98]
[1673424409288,40.0,16.049,16.038,17.0]
[1673424409916,20.0,16.049,16.038,17.0]
[1673424413174,20.0,16.048,16.038,17.0]
[1673424413795,20.0,16.049,16.038,17.0]
[1673424414531,20.0,16.049,16.037,60.09]
[1673424415378,20.0,16.049,16.037,43.09]
[1673424415788,20.0,16.049,16.038,20.0]
[1673424416957,20.0,16.049,16.039,17.0]
[1673424418008,20.0,16.051,16.039,17.0]
[1673424418206,46.74,16.053,16.04,20.0]
[1673424418417,222.0754,16.056,16.042,20.0]
[1673424418643,222.0754,16.056,16.043,61.7]
[1673424419491,20.0,16.055,16.043,17.0]
[1673424419689,20.0,16.055,16.042,17.0]
[1673424419901,20.0,16.055,16.043,46.77]
[1673424420119,20.0,16.055,16.044,17.0]
[1673424420621,20.0,16.055,16.041,46.77]
[1673424421264,20.0,16.055,16.042,20.0]
[1673424421789,222.0754,16.056,16.043,46.77]
[1673424421996,222.0754,16.056,16.043,63.77]
[1673424422746,20.0,16.055,16.043,17.0]
[1673424422955,20.0,16.055,16.042,17.0]
[1673424423145,20.0,16.055,16.043,46.77]
[1673424423355,20.0,16.055,16.044,17.0]
[1673424423780,20.0,16.058,16.044,17.0]
[1673424424107,20.0,16.058,16.043,63.77]
[1673424424322,66.72,16.059,16.044,20.0]
[1673424424639,66.72,16.059,16.045,63.76]
[1673424425163,20.0,16.058,16.045,17.0]
[1673424425351,20.0,16.058,16.044,17.0]
[1673424425563,38.62953868,16.058,16.042,46.77]
[1673424425773,20.0,16.056,16.039,46.78]
[1673424426091,217.41453868,16.055,16.035,46.79]
[1673424426305,20.0,16.054,16.034,46.79]
[1673424426630,20.0,16.052,16.033,46.8]
[1673424426848,26.51,16.05,16.033,46.8]
[1673424427037,40.0,16.049,16.033,46.8]
[1673424427249,40.0,16.049,16.032,46.8]
[1673424427567,115.055,16.048,16.033,17.0]
[1673424427774,20.0,16.047,16.034,46.79]
[1673424427992,20.0,16.047,16.035,17.0]
[1673424428400,20.0,16.047,16.032,46.8]
[1673424429895,65.38953868,16.046,16.03,46.8]
[1673424430113,20.0,16.045,16.029,46.81]
[1673424430301,46.76,16.044,16.03,20.0]
[1673424430517,20.0,16.043,16.03,20.0]
[1673424430954,20.0,16.043,16.029,20.0]
[1673424431150,20.0,16.043,16.03,17.0]
[1673424433998,20.0,16.043,16.03,63.8]
[1673424435587,20.0,16.045,16.03,63.8]
[1673424443445,66.76,16.045,16.03,63.8]
[1673424444200,20.0,16.045,16.03,63.8]
[1673424445556,20.0,16.045,16.031,20.0]
[1673424445765,20.0,16.045,16.032,56.1]
[1673424446611,20.0,16.046,16.032,56.1]
[1673424446814,134.7677,16.047,16.033,20.0]
[1673424447135,134.7677,16.047,16.034,39.78]
[1673424447342,134.7677,16.047,16.031,39.79]
[1673424448501,134.7677,16.047,16.032,17.0]
[1673424448710,134.7677,16.047,16.033,46.32]
[1673424449029,134.7677,16.047,16.034,17.0]
[1673424449636,181.5177,16.047,16.034,17.0]
[1673424449862,134.7677,16.047,16.034,17.0]
[1673424452086,46.76,16.046,16.031,46.8]
[1673424452295,63.76,16.046,16.029,20.0]
[1673424452503,20.0,16.045,16.029,20.0]
[1673424452713,46.76,16.044,16.029,20.0]
[1673424453026,20.0,16.043,16.029,20.0]
[1673424453442,20.0,16.043,16.03,17.0]
[1673424453859,114.7677,16.047,16.031,20.0]
[1673424454075,114.7677,16.047,16.032,63.8]
[1673424454393,114.7677,16.047,16.033,20.0]
[1673424454607,114.7677,16.047,16.034,63.79]
[1673424455450,20.0,16.046,16.034,17.0]
[1673424455648,20.0,16.046,16.033,17.0]
[1673424455862,20.0,16.046,16.034,46.79]
[1673424456066,20.0,16.046,16.035,17.0]
[1673424456409,20.0,16.046,16.033,17.0]
[1673424458906,46.76,16.045,16.033,17.0]
[1673424459328,20.0,16.044,16.033,17.0]
[1673424463020,20.0,16.044,16.032,17.0]
[1673424463236,20.0,16.044,16.031,17.0]
[1673424465226,20.0,16.044,16.029,66.81]
[1673424465546,20.0,16.042,16.029,20.0]
[1673424466387,20.0,16.042,16.03,17.0]
[1673424470045,20.0,16.044,16.031,46.8]
[1673424470254,20.0,16.044,16.032,17.0]
[1673424471723,20.0,16.044,16.031,17.0]
[1673424472584,20.0,16.044,16.03,48.39174093]
[1673424472780,20.0,16.042,16.03,48.39174093]
[1673424473110,46.77,16.043,16.03,48.39174093]
[1673424473307,20.0,16.044,16.03,48.39174093]
[1673424474035,20.0,16.044,16.031,17.0]
[1673424475346,20.0,16.044,16.03,17.0]
[1673424475651,20.0,16.044,16.031,46.8]
[1673424475864,20.0,16.044,16.032,17.0]
[1673424476499,20.0,16.044,16.031,46.8]
[1673424477022,20.0,16.044,16.03,46.8]
[1673424477847,20.0,16.044,16.031,17.0]
[1673424478785,20.0,16.044,16.029,18.5]
[1673424478995,46.77,16.043,16.029,18.5]
[1673424479422,20.0,16.042,16.029,18.5]
[1673424480995,20.0,16.042,16.03,17.0]
[1673424481430,20.0,16.04,16.03,17.0]
[1673424483219,20.0,16.046,16.031,46.8]
[1673424483413,20.0,16.046,16.032,17.0]
[1673424483623,20.0,16.046,16.032,37.0]
[1673424484060,20.0,16.046,16.033,46.8]
[1673424484251,20.0,16.046,16.034,17.0]
[1673424485004,20.0,16.046,16.033,17.0]
[1673424485217,20.0,16.046,16.032,17.0]
[1673424486266,20.0,16.046,16.033,46.8]
[1673424486455,20.0,16.046,16.034,17.0]
[1673424488895,20.0,16.046,16.033,63.8]
[1673424489722,20.0,16.046,16.033,17.0]
[1673424490990,20.0,16.046,16.031,46.8]
[1673424491523,20.0,16.044,16.028,5.7413954]
[1673424491842,66.77,16.043,16.028,5.7413954]
[1673424492452,20.0,16.042,16.028,5.7413954]
[1673424492771,20.0,16.04,16.028,5.7413954]
[1673424492978,20.0,16.039,16.029,17.0]
[1673424493309,20.0,16.038,16.029,17.0]
[1673424494548,20.0,16.038,16.028,5.7413954]
[1673424495922,20.0,16.038,16.029,17.0]
[1673424496563,20.0,16.039,16.029,17.0]
[1673424498684,20.0,16.039,16.029,7.0]
[1673424498891,20.0,16.039,16.028,5.7413954]
[1673424499328,20.0,16.038,16.028,5.7413954]
[1673424501004,20.0,16.038,16.029,17.0]
[1673424501833,20.0,16.038,16.028,5.7413954]
[1673424503202,20.0,16.038,16.029,17.0]
[1673424503721,37.091,16.039,16.029,17.0]
[1673424505841,17.091,16.039,16.029,17.0]
[1673424508678,20.0,16.038,16.029,17.0]
[1673424509508,37.091,16.039,16.029,17.0]
[1673424514541,37.091,16.039,16.028,5.7413954]
[1673424515824,37.091,16.039,16.029,17.0]
[1673424516136,17.091,16.039,16.029,17.0]
[1673424522537,46.76,16.044,16.03,20.0]
[1673424522746,114.7677,16.047,16.03,20.0]
[1673424522747,46.76,16.046,16.032,20.0]
[1673424522956,231.4222,16.047,16.033,63.8]
[1673424523166,231.4222,16.047,16.034,20.0]
[1673424523395,231.4222,16.047,16.035,17.0]
[1673424524546,20.0,16.046,16.034,17.0]
[1673424525479,20.0,16.046,16.033,17.0]
[1673424525684,231.4222,16.047,16.033,17.0]
[1673424526527,20.0,16.046,16.032,46.8]
[1673424526742,20.0,16.046,16.031,140.64423177]
[1673424526990,66.76,16.046,16.031,140.64423177]
[1673424528431,66.76,16.046,16.032,17.0]
[1673424530644,66.76,16.046,16.031,93.84423177]
[1673424530645,66.76,16.046,16.031,46.56937493]
[1673424531911,66.76,16.046,16.032,17.0]
[1673424554514,20.0,16.039,16.028,5.7413954]
[1673424554718,20.0,16.037,16.028,5.7413954]
[1673424554924,46.79,16.036,16.028,5.7413954]
[1673424555869,46.79,16.036,16.029,17.0]
[1673424556618,46.78,16.037,16.029,17.0]
[1673424559145,20.0,16.036,16.029,17.0]
[1673424559992,46.78,16.037,16.029,17.0]
[1673424564934,113.4167,16.038,16.029,17.0]
[1673424565463,20.0,16.037,16.029,17.0]
[1673424565982,113.4167,16.038,16.029,17.0]
[1673424566404,20.0,16.037,16.029,17.0]
[1673424567663,113.4167,16.038,16.029,17.0]
[1673424569016,159.916,16.039,16.029,17.0]
[1673424569234,113.136,16.039,16.029,17.0]
[1673424573318,46.77,16.043,16.03,20.0]
[1673424573530,18.62953868,16.045,16.031,63.8]
[1673424573738,18.62953868,16.045,16.032,20.0]
[1673424573949,232.8437,16.047,16.033,17.0]
[1673424574160,232.8437,16.047,16.033,63.8]
[1673424574378,232.8437,16.047,16.034,20.0]
[1673424574704,232.8437,16.047,16.035,17.0]
[1673424575857,46.75,16.048,16.035,17.0]
[1673424576066,441.05,16.049,16.035,17.0]
[1673424577431,441.05,16.049,16.035,20.0]
[1673424577751,441.05,16.049,16.036,17.0]
[1673424577954,46.75,16.049,16.036,17.0]
[1673424579311,20.0,16.048,16.036,17.0]
[1673424579733,20.0,16.046,16.031,66.8]
[1673424579945,20.0,16.046,16.031,20.0]
[1673424580575,20.0,16.046,16.032,46.8]
[1673424581224,20.0,16.046,16.033,17.0]
[1673424582256,157.8745,16.047,16.033,17.0]
[1673424582475,157.8745,16.047,16.033,37.0]
[1673424582694,111.1245,16.047,16.033,37.0]
[1673424585531,20.0,16.046,16.033,37.0]
[1673424585742,20.0,16.046,16.033,17.0]
[1673424587302,111.1245,16.047,16.033,37.0]
[1673424588142,20.0,16.046,16.033,37.0]
[1673424588366,20.0,16.046,16.033,17.0]
[1673424597413,111.1245,16.047,16.033,17.0]
[1673424597631,111.1245,16.047,16.033,37.0]
[1673424601196,20.0,16.046,16.033,37.0]
[1673424602361,20.0,16.046,16.033,17.0]
[1673424602886,111.1245,16.047,16.033,65.66152351]
[1673424604253,20.0,16.046,16.033,65.66152351]
[1673424604458,111.1245,16.047,16.033,65.66152351]
[1673424605198,20.0,16.046,16.033,65.66152351]
[1673424608136,111.1245,16.047,16.033,65.66152351]
[1673424608350,111.1245,16.047,16.033,112.46152351]
[1673424609717,20.0,16.046,16.033,112.46152351]
[1673424610539,136.1897,16.046,16.033,112.46152351]
[1673424611492,136.1897,16.046,16.033,65.66152351]
[1673424612536,116.1897,16.046,16.033,65.66152351]
[1673424612744,116.1897,16.046,16.033,112.46152351]
[1673424613496,116.1897,16.046,16.033,65.66152351]
[1673424615169,20.0,16.045,16.033,65.66152351]
[1673424615813,116.1897,16.046,16.033,65.66152351]
[1673424616434,20.0,16.045,16.033,65.66152351]
[1673424619051,116.1897,16.046,16.033,65.66152351]
[1673424619387,116.1897,16.046,16.034,46.79]
[1673424619591,116.1897,16.046,16.033,65.66152351]
[1673424619592,20.0,16.045,16.035,17.0]
[1673424619803,20.0,16.045,16.033,65.66152351]
[1673424621076,116.1897,16.046,16.033,65.66152351]
[1673424622015,116.1897,16.046,16.034,20.0]
[1673424622227,116.1897,16.046,16.035,17.0]
[1673424623990,20.0,16.045,16.035,17.0]
[1673424624201,116.1897,16.046,16.035,17.0]
[1673424624936,20.0,16.045,16.035,17.0]
[1673424625145,20.0,16.045,16.034,17.0]
[1673424628419,20.0,16.045,16.034,63.79]
[1673424629358,116.1897,16.046,16.034,63.79]
[1673424631052,20.0,16.045,16.034,63.79]
[1673424631691,116.1897,16.046,16.034,63.79]
[1673424632962,20.0,16.045,16.034,63.79]
[1673424636207,116.1897,16.046,16.034,63.79]
[1673424636608,20.0,16.045,16.034,63.79]
[1673424637362,116.1897,16.046,16.034,63.79]
[1673424639251,20.0,16.045,16.034,63.79]
[1673424639461,111.1245,16.047,16.034,63.79]
[1673424639681,111.1245,16.047,16.034,65.66152351]
[1673424639910,111.1245,16.047,16.035,20.0]
[1673424640103,46.75,16.05,16.036,17.0]
[1673424640296,110.3184,16.051,16.037,66.78]
[1673424640512,110.3184,16.051,16.038,37.0]
[1673424640716,46.73,16.055,16.04,20.0]
[1673424641033,271.0714,16.056,16.041,63.77]
[1673424641349,271.0714,16.056,16.041,54.01265236]
[1673424641679,20.0,16.055,16.039,20.0]
[1673424641891,46.73,16.054,16.04,20.0]
[1673424642099,20.0,16.053,16.04,20.0]
[1673424642298,46.74,16.052,16.04,20.0]
[1673424642716,46.74,16.052,16.041,17.0]
[1673424642930,20.0,16.053,16.041,17.0]
[1673424644831,26.5,16.05,16.041,17.0]
[1673424645042,20.0,16.048,16.041,17.0]
[1673424645571,46.75,16.047,16.041,17.0]
[1673424647986,20.0,16.048,16.041,17.0]
[1673424648409,20.0,16.048,16.037,48.84258119]
[1673424650410,20.0,16.048,16.038,17.0]
[1673424653126,183.5825,16.049,16.038,17.0]
[1673424653127,163.5825,16.049,16.038,17.0]
[1673424653337,116.8325,16.049,16.038,17.0]
[1673424654393,116.8325,16.049,16.038,37.0]
[1673424655031,116.8325,16.049,16.038,83.78]
[1673424655240,116.8325,16.049,16.038,37.0]
[1673424655456,116.8325,16.049,16.039,20.0]
[1673424655659,116.8325,16.049,16.04,17.0]
[1673424656175,46.73,16.054,16.04,63.78]
[1673424656385,156.5935,16.055,16.04,185.95190022]
[1673424656712,109.8635,16.055,16.042,20.0]
[1673424656911,109.8635,16.055,16.043,63.77]
[1673424657121,109.8635,16.055,16.044,20.0]
[1673424657332,109.8635,16.055,16.045,63.76]
[1673424657540,109.8635,16.055,16.045,116.14422562]
[1673424657770,109.8635,16.055,16.046,20.0]
[1673424657992,109.8635,16.055,16.047,17.0]
[1673424658696,114.023,16.056,16.047,17.0]
[1673424660189,114.023,16.056,16.045,52.38422562]
[1673424660592,20.0,16.055,16.045,52.38422562]
[1673424660807,114.023,16.056,16.045,52.38422562]
[1673424661452,114.023,16.056,16.046,17.0]
[1673424665022,155.0834,16.062,16.046,78.45164811]
[1673424665236,108.3734,16.062,16.047,176.6947]
[1673424665427,108.3734,16.062,16.049,20.0]
[1673424665635,108.3734,16.062,16.05,66.75]
[1673424665848,108.3734,16.062,16.051,17.0]
[1673424666267,108.3734,16.062,16.052,20.0]
[1673424666493,108.3734,16.062,16.053,17.0]
[1673424666706,108.3734,16.062,16.053,29.60906692]
[1673424666914,108.3734,16.062,16.053,17.0]
[1673424667131,108.3734,16.062,16.052,17.0]
[1673424671644,46.7,16.067,16.052,17.0]
[1673424671965,159.4223,16.067,16.052,17.0]
[1673424672163,159.4223,16.067,16.052,63.74]
[1673424673640,159.4223,16.067,16.053,20.0]
[1673424673854,159.4223,16.067,16.054,17.0]
[1673424677323,20.0,16.064,16.054,17.0]
[1673424677535,66.71,16.064,16.054,17.0]
[1673424678158,20.0,16.064,16.05,20.0]
[1673424678365,20.0,16.062,16.048,20.0]
[1673424678582,46.71,16.061,16.048,20.0]
[1673424679316,20.0,16.06,16.048,20.0]
[1673424680907,46.71,16.061,16.049,17.0]
[1673424681207,46.71,16.061,16.05,20.0]
[1673424681402,46.71,16.061,16.051,17.0]
[1673424686159,20.0,16.062,16.051,17.0]
[1673424686369,46.71,16.061,16.051,17.0]
[1673424688888,46.71,16.061,16.05,20.0]
[1673424689095,46.71,16.061,16.049,20.0]
[1673424689298,46.71,16.061,16.05,17.0]
[1673424691084,20.0,16.062,16.05,17.0]
[1673424696984,46.71,16.061,16.05,17.0]
[1673424702957,20.0,16.06,16.05,17.0]
[1673424703171,46.71,16.061,16.05,17.0]
[1673424706447,20.0,16.062,16.05,17.0]
[1673424713698,20.0,16.064,16.05,37.0]
[1673424714440,20.0,16.064,16.051,20.0]
[1673424714765,20.0,16.064,16.052,17.0]
[1673424722550,20.0,16.064,16.051,66.74]
[1673424722760,20.0,16.064,16.051,20.0]
[1673424722966,20.0,16.064,16.05,20.0]
[1673424723191,46.71,16.063,16.049,20.0]
[1673424723405,20.0,16.062,16.049,20.0]
[1673424725406,20.0,16.062,16.05,17.0]
[1673424725616,20.0,16.062,16.051,20.0]
[1673424727818,46.71,16.063,16.051,20.0]
[1673424728023,144.7946,16.065,16.052,17.0]
[1673424728433,20.0,16.064,16.052,17.0]
[1673424734127,20.0,16.064,16.051,20.0]
[1673424734319,46.71,16.063,16.051,20.0]
[1673424734627,20.0,16.062,16.049,20.0]
[1673424735388,20.0,16.062,16.05,17.0]
[1673424735584,20.0,16.062,16.051,20.0]
[1673424735797,20.0,16.062,16.052,17.0]
[1673424738020,20.0,16.064,16.052,17.0]
[1673424743265,20.0,16.062,16.052,17.0]
[1673424744199,66.71,16.064,16.052,17.0]
[1673424744633,66.71,16.064,16.051,20.0]
[1673424744852,66.71,16.064,16.049,20.0]
[1673424745991,17.0,16.063,16.049,20.0]
[1673424746196,20.0,16.062,16.049,20.0]
[1673424746539,20.0,16.062,16.048,46.75]
[1673424746540,20.0,16.059,16.048,46.75]
[1673424746849,20.0,16.057,16.047,109.9447]
[1673424748964,20.0,16.057,16.048,17.0]
[1673424749589,20.0,16.057,16.043,46.77]
[1673424749778,46.73,16.056,16.042,48.84258119]
[1673424749988,20.0,16.055,16.042,48.84258119]
[1673424750954,20.0,16.055,16.043,17.0]
[1673424751564,20.0,16.055,16.043,63.77]
[1673424754414,112.6712,16.056,16.043,63.77]
[1673424754612,20.0,16.055,16.043,63.77]
[1673424755366,112.6712,16.056,16.043,63.77]
[1673424755786,112.6712,16.056,16.043,112.61258119]
[1673424756315,112.6712,16.056,16.044,20.0]
[1673424756506,112.6712,16.056,16.045,63.76]
[1673424757559,112.6712,16.056,16.045,17.0]
[1673424760402,75.8087,16.061,16.046,20.0]
[1673424760609,93.19,16.06,16.047,17.0]
[1673424761150,20.0,16.059,16.047,17.0]
[1673424763680,93.19,16.06,16.047,17.0]
[1673424767040,20.0,16.059,16.047,17.0]
[1673424767981,93.19,16.06,16.047,17.0]
[1673424769778,20.0,16.059,16.047,17.0]
[1673424770409,73.19,16.06,16.047,17.0]
[1673424770627,46.72,16.06,16.048,20.0]
[1673424770837,46.72,16.06,16.049,17.0]
[1673424771047,46.72,16.06,16.05,20.0]
[1673424772293,75.8087,16.061,16.051,17.0]
[1673424774946,75.8087,16.061,16.05,20.0]
[1673424775165,75.8087,16.061,16.049,20.0]
[1673424776396,20.0,16.06,16.05,17.0]
[1673424776726,75.8087,16.061,16.051,20.0]
[1673424780403,46.72,16.06,16.047,116.7968]
[1673424780596,20.0,16.058,16.047,116.7968]
[1673424780806,66.72,16.058,16.047,116.7968]
[1673424781543,46.72,16.058,16.047,116.7968]
[1673424781868,20.0,16.058,16.047,116.7968]
[1673424782816,46.73,16.057,16.047,116.7968]
[1673424783132,20.0,16.058,16.047,116.7968]
[1673424783978,46.72,16.059,16.047,116.7968]
[1673424785447,46.72,16.059,16.048,20.0]
[1673424787951,46.72,16.059,16.047,116.7968]
[1673424788588,26.47,16.06,16.047,116.7968]
[1673424788918,20.0,16.059,16.047,116.7968]
[1673424789863,20.0,16.059,16.047,163.5468]
[1673424790285,20.0,16.059,16.047,116.7968]
[1673424791245,20.0,16.059,16.048,46.75]
[1673424797844,20.0,16.059,16.047,116.7968]
[1673424803437,26.42,16.06,16.047,116.7968]
[1673424803635,17.0,16.059,16.047,116.7968]
[1673424804804,26.42,16.06,16.048,17.0]
[1673424805114,20.0,16.059,16.049,46.75]
[1673424808472,20.0,16.059,16.05,37.0]
[1673424809740,20.0,16.059,16.051,46.74]
[1673424809947,20.0,16.059,16.052,37.0]
[1673424810161,20.0,16.059,16.052,17.0]
[1673424810478,20.0,16.059,16.05,20.0]
[1673424810479,20.0,16.059,16.051,17.0]
[1673424811414,20.0,16.059,16.05,17.0]
[1673424812590,12.33,16.059,16.047,116.7968]
[1673424812784,186.2,16.057,16.038,117.4657]
[1673424813109,2.5744512,16.049,16.03,46.8]
[1673424813316,26.47,16.04,16.03,46.8]
[1673424813743,26.47,16.04,16.03,66.8]
[1673424814163,26.47,16.04,16.03,46.8]
[1673424814778,26.47,16.04,16.031,20.0]
[1673424815112,26.47,16.04,16.032,46.8]
[1673424816983,26.47,16.04,16.033,17.0]
[1673424817416,26.47,16.04,16.032,46.8]
[1673424817625,26.47,16.04,16.031,20.0]
[1673424819003,26.47,16.04,16.032,17.0]
[1673424819196,2.5744512,16.043,16.032,63.8]
[1673424823296,2.5744512,16.043,16.032,17.0]
[1673424823515,2.5744512,16.043,16.032,63.8]
[1673424824560,2.5744512,16.044,16.032,63.8]
[1673424826150,2.5744512,16.044,16.033,20.0]
[1673424826341,2.5744512,16.046,16.034,63.79]
[1673424826557,20.0,16.049,16.035,20.0]
[1673424826766,20.0,16.049,16.036,63.79]
[1673424833402,20.0,16.048,16.036,63.79]
[1673424835175,20.0,16.048,16.036,17.0]
[1673424835385,20.0,16.048,16.037,46.78]
[1673424835705,20.0,16.048,16.036,46.79]
[1673424835911,20.0,16.048,16.037,17.0]
[1673424844015,40.0,16.049,16.037,17.0]
[1673424844337,58.62953868,16.049,16.036,63.79]
[1673424844545,58.62953868,16.049,16.036,17.0]
[1673424844760,58.62953868,16.049,16.035,17.0]
[1673424845072,173.63743868,16.049,16.036,46.79]
[1673424845263,173.63743868,16.049,16.037,17.0]
[1673424846326,20.0,16.048,16.037,17.0]
[1673424849475,135.0079,16.049,16.037,17.0]
[1673424849685,135.0079,16.049,16.038,46.78]
[1673424849905,135.0079,16.049,16.039,17.0]
[1673424850855,135.0079,16.049,16.038,17.0]
[1673424853390,135.0079,16.049,16.037,17.0]
[1673424854749,135.0079,16.049,16.037,63.78]
[1673424854935,135.0079,16.049,16.037,17.0]
[1673424856217,135.0079,16.049,16.037,63.78]
[1673424857494,135.0079,16.049,16.037,17.0]
[1673424857818,135.0079,16.049,16.036,17.0]
[1673424858031,135.0079,16.049,16.037,46.78]
[1673424858220,135.0079,16.049,16.038,17.0]
[1673424858635,20.0,16.049,16.038,17.0]
[1673424858857,20.0,16.049,16.037,63.78]
[1673424859080,20.0,16.049,16.038,20.0]
[1673424859275,20.0,16.049,16.039,17.0]
[1673424862647,20.0,16.049,16.038,17.0]
[1673424863060,20.0,16.048,16.035,46.79]
[1673424863275,20.0,16.048,16.033,46.8]
[1673424863493,134.8142,16.048,16.033,46.8]
[1673424864020,46.75,16.047,16.033,46.8]
[1673424864230,181.5642,16.048,16.033,46.8]
[1673424864543,181.5642,16.048,16.034,17.0]
[1673424868627,181.5642,16.048,16.035,46.79]
[1673424868841,134.8142,16.048,16.036,17.0]
[1673424869589,20.0,16.049,16.036,17.0]
[1673424870109,20.0,16.049,16.035,63.79]
[1673424873788,20.0,16.048,16.035,63.79]
[1673424875680,66.75,16.048,16.035,17.0]
[1673424876081,85.37953868,16.048,16.035,17.0]
[1673424878095,85.37953868,16.048,16.034,63.79]
[1673424878309,85.37953868,16.048,16.032,46.8]
[1673424878523,205.06013868,16.048,16.032,46.8]
[1673424879798,205.06013868,16.048,16.033,17.0]
[1673424882212,205.06013868,16.048,16.033,37.0]
[1673424882432,205.06013868,16.048,16.033,17.0]
[1673424884733,205.06013868,16.048,16.032,17.0]
[1673424884922,205.06013868,16.048,16.032,37.0]
[1673424885485,205.06013868,16.048,16.033,46.8]
[1673424885784,205.06013868,16.048,16.032,46.8]